[Event "*** Titled Tuesday Blitz"]
[Site "Chess.com"]
[Date "2020.03.03"]
[Round "5"]
[White "Sibelephant"]
[Black "Leonid_Starozhilov"]
[Result "1-0"]
[WhiteElo "3050"]
[BlackElo "2716"]
[TimeControl "180+1"]
[EndTime "9:52:29 PST"]
[Termination "Sibelephant won by resignation"]

1. d4 {[%clk 0:02:59.5]} 1... Nf6 {[%clk 0:03:00.2]} 2. c4 {[%clk 0:02:58.9]}
2... g6 {[%clk 0:03:00.6]} 3. Nf3 {[%clk 0:02:58.8]} 3... Bg7 {[%clk 0:03:00.9]}
4. g3 {[%clk 0:02:59.1]} 4... O-O {[%clk 0:03:01]} 5. Bg2 {[%clk 0:02:59.1]}
5... d6 {[%clk 0:03:01.9]} 6. O-O {[%clk 0:02:59.3]} 6... c6 {[%clk 0:03:02.8]}
7. Nc3 {[%clk 0:02:59]} 7... Bf5 {[%clk 0:03:03.4]} 8. Ne1 {[%clk 0:02:53.9]}
8... d5 {[%clk 0:03:02.8]} 9. cxd5 {[%clk 0:02:49.8]} 9... cxd5 {[%clk
0:03:01.7]} 10. b3 {[%clk 0:02:32.8]} 10... Nc6 {[%clk 0:03:01.1]} 11. Bb2
{[%clk 0:02:33.1]} 11... Rc8 {[%clk 0:02:45.8]} 12. Rc1 {[%clk 0:02:31.8]} 12...
Ne4 {[%clk 0:02:34.1]} 13. e3 {[%clk 0:02:28.3]} 13... Nxc3 {[%clk 0:02:22.3]}
14. Bxc3 {[%clk 0:02:27.8]} 14... Qd7 {[%clk 0:02:11.5]} 15. Nd3 {[%clk
0:02:27.1]} 15... Bxd3 {[%clk 0:02:11.8]} 16. Qxd3 {[%clk 0:02:27.1]} 16... e6
{[%clk 0:02:12.1]} 17. b4 {[%clk 0:02:20]} 17... Rc7 {[%clk 0:02:07.3]} 18. Bd2
{[%clk 0:01:51.8]} 18... Rfc8 {[%clk 0:02:05.7]} 19. Rc2 {[%clk 0:01:28.9]}
19... Ne7 {[%clk 0:01:59.1]} 20. Rfc1 {[%clk 0:01:25.5]} 20... Rxc2 {[%clk
0:01:58.7]} 21. Rxc2 {[%clk 0:01:26.1]} 21... Nf5 {[%clk 0:01:23.3]} 22. Bf1
{[%clk 0:01:22.4]} 22... Rxc2 {[%clk 0:01:14.3]} 23. Qxc2 {[%clk 0:01:22.2]}
23... Nd6 {[%clk 0:01:10.4]} 24. a4 {[%clk 0:01:21.4]} 24... Bf8 {[%clk
0:01:06.4]} 25. b5 {[%clk 0:01:20.7]} 25... Qc8 {[%clk 0:00:36]} 26. Qb1 {[%clk
0:01:17.8]} 26... Nc4 {[%clk 0:00:27.5]} 27. Qc1 {[%clk 0:01:15.2]} 27... Nd6
{[%clk 0:00:27]} 28. Qd1 {[%clk 0:01:14.2]} 28... Nc4 {[%clk 0:00:27.1]} 29. Be1
{[%clk 0:01:12.8]} 29... b6 {[%clk 0:00:26.2]} 30. Qc2 {[%clk 0:00:47.8]} 30...
f5 {[%clk 0:00:11.4]} 31. Bd3 {[%clk 0:00:43.6]} 31... Bd6 {[%clk 0:00:10.2]}
32. a5 {[%clk 0:00:39.2]} 32... Qc7 {[%clk 0:00:09.4]} 33. axb6 {[%clk
0:00:37.8]} 33... axb6 {[%clk 0:00:09.7]} 34. Qa4 {[%clk 0:00:36.4]} 34... Kg7
{[%clk 0:00:08.6]} 35. Be2 {[%clk 0:00:23.8]} 35... h5 {[%clk 0:00:08.2]} 36.
Kg2 {[%clk 0:00:17.9]} 36... Kf7 {[%clk 0:00:07.7]} 37. Qa8 {[%clk 0:00:17.6]}
37... Kg7 {[%clk 0:00:08]} 38. Qe8 {[%clk 0:00:17.1]} 38... Qe7 {[%clk
0:00:07.3]} 39. Qc8 {[%clk 0:00:16.9]} 39... Qc7 {[%clk 0:00:07.9]} 40. Qxe6
{[%clk 0:00:16.7]} 40... Qb7 {[%clk 0:00:06.8]} 41. e4 {[%clk 0:00:11.6]} 41...
fxe4 {[%clk 0:00:06.5]} 42. Bxc4 {[%clk 0:00:11.7]} 42... dxc4 {[%clk
0:00:06.7]} 43. Qxd6 {[%clk 0:00:11.9]} 1-0

[Event "*** Titled Tuesday Blitz"]
[Site "Chess.com"]
[Date "2020.03.03"]
[Round "5"]
[White "Tjktiger"]
[Black "Bykov_Egor"]
[Result "1-0"]
[WhiteElo "2788"]
[BlackElo "2584"]
[TimeControl "180+1"]
[EndTime "9:52:30 PST"]
[Termination "Tjktiger won by checkmate"]

1. d4 {[%clk 0:03:00.1]} 1... Nf6 {[%clk 0:02:59.4]} 2. c4 {[%clk 0:03:00.1]}
2... e6 {[%clk 0:02:59.5]} 3. g3 {[%clk 0:03:00.6]} 3... d5 {[%clk 0:02:57.9]}
4. Bg2 {[%clk 0:02:59.9]} 4... Bb4+ {[%clk 0:02:55]} 5. Nd2 {[%clk 0:02:58]}
5... O-O {[%clk 0:02:51.9]} 6. Nf3 {[%clk 0:02:56.3]} 6... dxc4 {[%clk
0:02:51.3]} 7. Qc2 {[%clk 0:02:53.6]} 7... b5 {[%clk 0:02:46]} 8. a4 {[%clk
0:02:27.8]} 8... c6 {[%clk 0:02:46]} 9. O-O {[%clk 0:02:27.6]} 9... a5 {[%clk
0:02:32.4]} 10. b3 {[%clk 0:02:20.5]} 10... cxb3 {[%clk 0:02:26.5]} 11. Nxb3
{[%clk 0:02:20.4]} 11... bxa4 {[%clk 0:02:23.4]} 12. Rxa4 {[%clk 0:02:19.6]}
12... Ba6 {[%clk 0:02:22.7]} 13. Rd1 {[%clk 0:02:11.8]} 13... Bb5 {[%clk
0:02:22.1]} 14. Ra1 {[%clk 0:02:11.8]} 14... Nbd7 {[%clk 0:02:15.8]} 15. Ne5
{[%clk 0:01:50.8]} 15... Nxe5 {[%clk 0:01:35.6]} 16. dxe5 {[%clk 0:01:50.5]}
16... Nd7 {[%clk 0:01:36.1]} 17. Nd4 {[%clk 0:01:50.4]} 17... Rc8 {[%clk
0:01:18.6]} 18. Be4 {[%clk 0:01:11.5]} 18... g6 {[%clk 0:00:54.8]} 19. Bh6
{[%clk 0:01:10.1]} 19... Re8 {[%clk 0:00:55]} 20. Rac1 {[%clk 0:01:00.4]} 20...
Ba3 {[%clk 0:00:17]} 21. Rb1 {[%clk 0:00:44.2]} 21... Bc5 {[%clk 0:00:16.5]} 22.
Be3 {[%clk 0:00:12.7]} 22... Qe7 {[%clk 0:00:15.2]} 23. Nxb5 {[%clk 0:00:08.6]}
23... cxb5 {[%clk 0:00:12.5]} 24. Rxd7 {[%clk 0:00:08.9]} 24... Qxd7 {[%clk
0:00:11.5]} 25. Bxc5 {[%clk 0:00:09.4]} 25... b4 {[%clk 0:00:08.2]} 26. Rc1
{[%clk 0:00:09.7]} 26... Qc7 {[%clk 0:00:08.2]} 27. Qb2 {[%clk 0:00:08.6]} 27...
Red8 {[%clk 0:00:06.2]} 28. Be3 {[%clk 0:00:08.5]} 28... Qb8 {[%clk 0:00:05.4]}
29. Ra1 {[%clk 0:00:08.6]} 29... Qb5 {[%clk 0:00:04.9]} 30. Bd3 {[%clk
0:00:07.7]} 30... Qd5 {[%clk 0:00:04.2]} 31. Bg5 {[%clk 0:00:07.6]} 31... Rd7
{[%clk 0:00:03.7]} 32. Qd2 {[%clk 0:00:07.4]} 32... Qxe5 {[%clk 0:00:03.3]} 33.
Re1 {[%clk 0:00:06.3]} 33... b3 {[%clk 0:00:02.1]} 34. Bf4 {[%clk 0:00:06.1]}
34... Qd4 {[%clk 0:00:02.3]} 35. Qxa5 {[%clk 0:00:05.7]} 35... b2 {[%clk
0:00:02.1]} 36. Be5 {[%clk 0:00:05.9]} 36... Qd5 {[%clk 0:00:01.9]} 37. Qxd5
{[%clk 0:00:05.8]} 37... Rxd5 {[%clk 0:00:02.7]} 38. Bxb2 {[%clk 0:00:06.7]}
38... Rb8 {[%clk 0:00:02.8]} 39. Bf6 {[%clk 0:00:06.9]} 39... Rd6 {[%clk
0:00:02.3]} 40. g4 {[%clk 0:00:07.1]} 40... Rc6 {[%clk 0:00:02.3]} 41. g5 {[%clk
0:00:07.2]} 41... h6 {[%clk 0:00:02.3]} 42. h4 {[%clk 0:00:06.9]} 42... hxg5
{[%clk 0:00:02.5]} 43. hxg5 {[%clk 0:00:07.8]} 43... Rc5 {[%clk 0:00:03]} 44.
Kg2 {[%clk 0:00:08.2]} 44... Rb4 {[%clk 0:00:02.9]} 45. Rh1 {[%clk 0:00:08.3]}
45... Rg4+ {[%clk 0:00:02.8]} 46. Kf3 {[%clk 0:00:08.8]} 46... Rgxg5 {[%clk
0:00:03]} 47. Rh8# {[%clk 0:00:08.6]} 1-0

[Event "*** Titled Tuesday Blitz"]
[Site "Chess.com"]
[Date "2020.03.03"]
[Round "5"]
[White "GMKrikor"]
[Black "Ali_rastbod"]
[Result "0-1"]
[WhiteElo "2830"]
[BlackElo "2655"]
[TimeControl "180+1"]
[EndTime "9:52:32 PST"]
[Termination "Ali_rastbod won by resignation"]

1. Nf3 {[%clk 0:03:00.9]} 1... d5 {[%clk 0:02:59.6]} 2. c4 {[%clk 0:02:59.3]}
2... d4 {[%clk 0:02:59.7]} 3. b4 {[%clk 0:02:59]} 3... f6 {[%clk 0:02:58.5]} 4.
e3 {[%clk 0:02:54.9]} 4... e5 {[%clk 0:02:59]} 5. c5 {[%clk 0:02:55.2]} 5... a5
{[%clk 0:02:59.4]} 6. Qa4+ {[%clk 0:02:54.7]} 6... c6 {[%clk 0:02:48]} 7. Bc4
{[%clk 0:02:49.6]} 7... Na6 {[%clk 0:02:46.3]} 8. Qb3 {[%clk 0:02:01.3]} 8...
Nh6 {[%clk 0:02:44.2]} 9. O-O {[%clk 0:01:50.6]} 9... axb4 {[%clk 0:02:10.9]}
10. exd4 {[%clk 0:01:50.4]} 10... exd4 {[%clk 0:02:11.8]} 11. Re1+ {[%clk
0:01:50.6]} 11... Be7 {[%clk 0:02:12.3]} 12. d3 {[%clk 0:01:40.8]} 12... Nxc5
{[%clk 0:01:35.5]} 13. Qxb4 {[%clk 0:01:37.5]} 13... Qa5 {[%clk 0:01:27.7]} 14.
Qb2 {[%clk 0:00:55.1]} 14... Nf5 {[%clk 0:01:11.4]} 15. Bd2 {[%clk 0:00:49.7]}
15... Qd8 {[%clk 0:01:09.7]} 16. Bb4 {[%clk 0:00:47]} 16... b6 {[%clk
0:01:05.2]} 17. Nbd2 {[%clk 0:00:47.5]} 17... Kf8 {[%clk 0:00:59.6]} 18. Nb3
{[%clk 0:00:34.4]} 18... Na4 {[%clk 0:00:46.4]} 19. Bxe7+ {[%clk 0:00:28.2]}
19... Nxe7 {[%clk 0:00:47.3]} 20. Qxd4 {[%clk 0:00:28.4]} 20... Qxd4 {[%clk
0:00:47.3]} 21. Nbxd4 {[%clk 0:00:24.5]} 21... b5 {[%clk 0:00:32.3]} 22. Be6
{[%clk 0:00:22.3]} 22... Bxe6 {[%clk 0:00:25.1]} 23. Nxe6+ {[%clk 0:00:21.5]}
23... Kf7 {[%clk 0:00:25.3]} 24. Nxg7 {[%clk 0:00:19.7]} 24... Rhd8 {[%clk
0:00:20.5]} 25. Nh5 {[%clk 0:00:14.4]} 25... Rxd3 {[%clk 0:00:20]} 26. Nf4
{[%clk 0:00:15]} 26... Rd6 {[%clk 0:00:19.8]} 27. Rac1 {[%clk 0:00:14.7]} 27...
c5 {[%clk 0:00:18]} 28. Re3 {[%clk 0:00:08.8]} 28... b4 {[%clk 0:00:17.7]} 29.
Rce1 {[%clk 0:00:08.5]} 29... Nc6 {[%clk 0:00:17.8]} 30. g4 {[%clk 0:00:05.7]}
30... Rg8 {[%clk 0:00:15.5]} 31. h3 {[%clk 0:00:05.7]} 31... Nb2 {[%clk
0:00:13.7]} 32. Kh2 {[%clk 0:00:05.2]} 32... Nc4 {[%clk 0:00:14]} 33. R3e2
{[%clk 0:00:05.6]} 33... N4e5 {[%clk 0:00:14.4]} 34. Nxe5+ {[%clk 0:00:05.3]}
34... Nxe5 {[%clk 0:00:15.3]} 35. Kg2 {[%clk 0:00:04.6]} 35... c4 {[%clk
0:00:13.9]} 36. Rc1 {[%clk 0:00:03.1]} 36... c3 {[%clk 0:00:13.8]} 37. Re4
{[%clk 0:00:03.7]} 37... Rb8 {[%clk 0:00:13.6]} 38. Rc2 {[%clk 0:00:03.6]} 38...
Rd2 {[%clk 0:00:13.4]} 39. Rxd2 {[%clk 0:00:01.9]} 39... cxd2 {[%clk 0:00:14.3]}
40. Rd4 {[%clk 0:00:02.8]} 40... Nc4 {[%clk 0:00:14.4]} 41. Ne2 {[%clk
0:00:02.2]} 41... Ra8 {[%clk 0:00:11.7]} 42. Kf3 {[%clk 0:00:01.2]} 42... Rxa2
{[%clk 0:00:08.6]} 43. Nf4 {[%clk 0:00:01.8]} 43... Ra1 {[%clk 0:00:08.1]} 44.
Rd7+ {[%clk 0:00:01.3]} 44... Ke8 {[%clk 0:00:08.1]} 45. Rd3 {[%clk 0:00:01.4]}
45... d1=Q+ {[%clk 0:00:08.3]} 46. Rxd1 {[%clk 0:00:01.7]} 46... Rxd1 {[%clk
0:00:09.2]} 0-1

[Event "*** Titled Tuesday Blitz"]
[Site "Chess.com"]
[Date "2020.03.03"]
[Round "5"]
[White "monstertube"]
[Black "FearNoEvil12"]
[Result "0-1"]
[WhiteElo "2111"]
[BlackElo "1966"]
[TimeControl "180+1"]
[EndTime "9:52:35 PST"]
[Termination "FearNoEvil12 won on time"]

1. d4 {[%clk 0:03:00.9]} 1... b5 {[%clk 0:02:59.2]} 2. e3 {[%clk 0:02:58.6]}
2... a6 {[%clk 0:02:59.6]} 3. Nf3 {[%clk 0:02:58.2]} 3... Bb7 {[%clk 0:03:00]}
4. a3 {[%clk 0:02:56.4]} 4... Nf6 {[%clk 0:03:00.1]} 5. c4 {[%clk 0:02:56.2]}
5... bxc4 {[%clk 0:02:58.4]} 6. Bxc4 {[%clk 0:02:53.7]} 6... e6 {[%clk
0:02:58.8]} 7. b4 {[%clk 0:02:51.8]} 7... d6 {[%clk 0:02:57.4]} 8. Bb2 {[%clk
0:02:51]} 8... Nbd7 {[%clk 0:02:57.4]} 9. O-O {[%clk 0:02:50.7]} 9... Rg8 {[%clk
0:02:57.3]} 10. Nc3 {[%clk 0:02:49.3]} 10... g5 {[%clk 0:02:56.8]} 11. Nd2
{[%clk 0:02:41.7]} 11... g4 {[%clk 0:02:54.5]} 12. e4 {[%clk 0:02:41]} 12... h5
{[%clk 0:02:52.8]} 13. Qe2 {[%clk 0:02:33.8]} 13... Nh7 {[%clk 0:02:48.5]} 14.
Rad1 {[%clk 0:02:29]} 14... Ng5 {[%clk 0:02:47.4]} 15. Qe3 {[%clk 0:02:26.1]}
15... Qf6 {[%clk 0:02:39.3]} 16. f4 {[%clk 0:02:21.1]} 16... gxf3 {[%clk
0:02:37.1]} 17. Nxf3 {[%clk 0:02:20.8]} 17... Nh3+ {[%clk 0:02:26.4]} 18. Kh1
{[%clk 0:02:19.3]} 18... Bh6 {[%clk 0:02:26.2]} 19. Qe1 {[%clk 0:02:10]} 19...
Nf4 {[%clk 0:02:24.1]} 20. g3 {[%clk 0:02:00.2]} 20... Nh3 {[%clk 0:02:13.4]}
21. Bc1 {[%clk 0:01:37.5]} 21... Bxc1 {[%clk 0:02:08]} 22. Rxc1 {[%clk
0:01:38.4]} 22... Qg7 {[%clk 0:01:53.3]} 23. Rd1 {[%clk 0:01:34.9]} 23... Nf6
{[%clk 0:01:49.6]} 24. Bd3 {[%clk 0:01:32.2]} 24... Ng4 {[%clk 0:01:48.2]} 25.
Rd2 {[%clk 0:01:29.6]} 25... O-O-O {[%clk 0:01:44.6]} 26. Qe2 {[%clk 0:01:25.6]}
26... Kd7 {[%clk 0:01:35.4]} 27. Bxa6 {[%clk 0:01:24.3]} 27... Ba8 {[%clk
0:01:33.9]} 28. Bb5+ {[%clk 0:01:23]} 28... Ke7 {[%clk 0:01:33.7]} 29. Nd1
{[%clk 0:01:04.8]} 29... Ng5 {[%clk 0:01:31.2]} 30. Nxg5 {[%clk 0:01:03.4]}
30... Qxg5 {[%clk 0:01:29.8]} 31. Nf2 {[%clk 0:00:59.2]} 31... Nxf2+ {[%clk
0:01:23.1]} 32. Qxf2 {[%clk 0:00:58.2]} 32... Bxe4+ {[%clk 0:01:20.1]} 33. Kg1
{[%clk 0:00:58.2]} 33... f5 {[%clk 0:01:19.2]} 34. Bd3 {[%clk 0:00:56.1]} 34...
Bd5 {[%clk 0:01:13.5]} 35. Qf4 {[%clk 0:00:51.2]} 35... Qxf4 {[%clk 0:00:52.2]}
36. Rxf4 {[%clk 0:00:49.9]} 36... Ra8 {[%clk 0:00:46.4]} 37. Re2 {[%clk
0:00:41.8]} 37... Kf6 {[%clk 0:00:45]} 38. Rh4 {[%clk 0:00:40.5]} 38... Rg5
{[%clk 0:00:41.9]} 39. Rc2 {[%clk 0:00:13.3]} 39... Rxa3 {[%clk 0:00:39.7]} 40.
Bf1 {[%clk 0:00:12.6]} 40... c6 {[%clk 0:00:36.8]} 41. Kf2 {[%clk 0:00:11.5]}
41... Rg4 {[%clk 0:00:25.2]} 42. Rxh5 {[%clk 0:00:09.2]} 42... Rxd4 {[%clk
0:00:24.5]} 43. Bg2 {[%clk 0:00:07.5]} 43... Bxg2 {[%clk 0:00:20.7]} 44. Kxg2
{[%clk 0:00:06]} 44... Ke5 {[%clk 0:00:19.7]} 45. Rh8 {[%clk 0:00:05.4]} 45...
Rxb4 {[%clk 0:00:15.8]} 46. h4 {[%clk 0:00:04]} 46... c5 {[%clk 0:00:15]} 47. h5
{[%clk 0:00:03.8]} 47... Rbb3 {[%clk 0:00:14.3]} 48. Rg8 {[%clk 0:00:02.4]}
48... Ra7 {[%clk 0:00:06.5]} 49. Re2+ {[%clk 0:00:01.6]} 49... Kd5 {[%clk
0:00:03.8]} 0-1

[Event "*** Titled Tuesday Blitz"]
[Site "Chess.com"]
[Date "2020.03.03"]
[Round "5"]
[White "Sankalp_Gupta2003"]
[Black "chris_rock_comic"]
[Result "1-0"]
[WhiteElo "2849"]
[BlackElo "2887"]
[TimeControl "180+1"]
[EndTime "9:52:36 PST"]
[Termination "Sankalp_Gupta2003 won on time"]

1. c4 {[%clk 0:03:00.9]} 1... e5 {[%clk 0:02:59.1]} 2. Nc3 {[%clk 0:03:00.7]}
2... Nf6 {[%clk 0:02:57.8]} 3. Nf3 {[%clk 0:02:58.3]} 3... Nc6 {[%clk
0:02:57.1]} 4. d4 {[%clk 0:02:57.6]} 4... exd4 {[%clk 0:02:55.3]} 5. Nxd4 {[%clk
0:02:58.3]} 5... Bb4 {[%clk 0:02:53.1]} 6. Bg5 {[%clk 0:02:54.4]} 6... h6 {[%clk
0:02:48.6]} 7. Bh4 {[%clk 0:02:52.9]} 7... O-O {[%clk 0:02:42.9]} 8. e3 {[%clk
0:02:52.6]} 8... Re8 {[%clk 0:02:36.2]} 9. Be2 {[%clk 0:02:51.1]} 9... g5 {[%clk
0:02:32.4]} 10. Bg3 {[%clk 0:02:50.4]} 10... Ne4 {[%clk 0:02:32]} 11. Nb5 {[%clk
0:02:38.6]} 11... d6 {[%clk 0:02:20.2]} 12. O-O {[%clk 0:02:36.4]} 12... Bxc3
{[%clk 0:02:12.7]} 13. Nxc3 {[%clk 0:02:35.7]} 13... Nxc3 {[%clk 0:02:09.4]} 14.
bxc3 {[%clk 0:02:36.6]} 14... Bf5 {[%clk 0:02:06.1]} 15. f4 {[%clk 0:02:07.5]}
15... Qe7 {[%clk 0:01:59.6]} 16. fxg5 {[%clk 0:02:06]} 16... Qxe3+ {[%clk
0:01:57]} 17. Kh1 {[%clk 0:02:05.5]} 17... Bg6 {[%clk 0:01:49.4]} 18. Bf3 {[%clk
0:02:01.3]} 18... hxg5 {[%clk 0:01:44.8]} 19. Bd5 {[%clk 0:02:01.6]} 19... Qxc3
{[%clk 0:01:39.1]} 20. Qg4 {[%clk 0:01:58.6]} 20... Nb4 {[%clk 0:01:27.4]} 21.
Bxb7 {[%clk 0:01:50.2]} 21... Rab8 {[%clk 0:01:26.4]} 22. Bf3 {[%clk 0:01:48.8]}
22... Qf6 {[%clk 0:01:10.6]} 23. Bd5 {[%clk 0:01:35.9]} 23... Qd8 {[%clk
0:01:08.7]} 24. Be1 {[%clk 0:01:21]} 24... Nxd5 {[%clk 0:01:06.5]} 25. cxd5
{[%clk 0:01:21.8]} 25... Re4 {[%clk 0:01:04.6]} 26. Qg3 {[%clk 0:01:19.4]} 26...
Rb5 {[%clk 0:01:00.1]} 27. Bc3 {[%clk 0:01:14.7]} 27... Rxd5 {[%clk 0:00:51.5]}
28. Bf6 {[%clk 0:01:09.6]} 28... Qd7 {[%clk 0:00:49.2]} 29. Rab1 {[%clk
0:01:06.9]} 29... Rb5 {[%clk 0:00:41.6]} 30. a4 {[%clk 0:01:00.9]} 30... Rxb1
{[%clk 0:00:35]} 31. Rxb1 {[%clk 0:01:01.8]} 31... Re8 {[%clk 0:00:34.3]} 32.
Rf1 {[%clk 0:01:00]} 32... Qxa4 {[%clk 0:00:20.3]} 33. Qxg5 {[%clk 0:00:54.6]}
33... Qc4 {[%clk 0:00:19.4]} 34. Rg1 {[%clk 0:00:51.7]} 34... Kh7 {[%clk
0:00:16.1]} 35. Ba1 {[%clk 0:00:51.5]} 35... c5 {[%clk 0:00:10.8]} 36. Qf6
{[%clk 0:00:49.7]} 36... Rg8 {[%clk 0:00:09.4]} 37. h3 {[%clk 0:00:44.4]} 37...
Qd5 {[%clk 0:00:06.3]} 38. Re1 {[%clk 0:00:33.2]} 38... a5 {[%clk 0:00:05.4]}
39. Kh2 {[%clk 0:00:30]} 39... a4 {[%clk 0:00:04.9]} 40. Re8 {[%clk 0:00:27.8]}
1-0

[Event "*** Titled Tuesday Blitz"]
[Site "Chess.com"]
[Date "2020.03.03"]
[Round "5"]
[White "MartinMatthiesen"]
[Black "Off-War"]
[Result "0-1"]
[WhiteElo "2526"]
[BlackElo "2729"]
[TimeControl "180+1"]
[EndTime "9:52:38 PST"]
[Termination "Off-War won on time"]

1. d4 {[%clk 0:03:00.9]} 1... Nf6 {[%clk 0:01:42.5]} 2. c4 {[%clk 0:02:57.8]}
2... g6 {[%clk 0:01:40.9]} 3. Nc3 {[%clk 0:02:57.1]} 3... Bg7 {[%clk 0:01:41.8]}
4. e4 {[%clk 0:02:57.3]} 4... O-O {[%clk 0:01:42.7]} 5. Nf3 {[%clk 0:02:56.4]}
5... d6 {[%clk 0:01:43.1]} 6. Be2 {[%clk 0:02:56.6]} 6... c5 {[%clk 0:01:42.4]}
7. O-O {[%clk 0:02:56]} 7... Nc6 {[%clk 0:01:41]} 8. d5 {[%clk 0:02:55.5]} 8...
Na5 {[%clk 0:01:41.6]} 9. Bg5 {[%clk 0:02:54.8]} 9... h6 {[%clk 0:01:41.1]} 10.
Bh4 {[%clk 0:02:54]} 10... e5 {[%clk 0:01:41.4]} 11. Nd2 {[%clk 0:02:49.2]}
11... b6 {[%clk 0:01:36.6]} 12. a3 {[%clk 0:02:44.7]} 12... Qd7 {[%clk 0:01:31]}
13. b4 {[%clk 0:02:39.4]} 13... Nb7 {[%clk 0:01:31.1]} 14. Rb1 {[%clk
0:02:32.8]} 14... Nh7 {[%clk 0:01:27.6]} 15. f3 {[%clk 0:02:26.2]} 15... f5
{[%clk 0:01:26.4]} 16. Qc2 {[%clk 0:02:24.6]} 16... Bf6 {[%clk 0:01:25.7]} 17.
Bf2 {[%clk 0:02:23.7]} 17... Qe7 {[%clk 0:01:24.5]} 18. Nb3 {[%clk 0:02:16.9]}
18... f4 {[%clk 0:01:24.4]} 19. bxc5 {[%clk 0:02:15.4]} 19... bxc5 {[%clk
0:01:23.9]} 20. Nd2 {[%clk 0:02:09.1]} 20... Bh4 {[%clk 0:01:23.9]} 21. Bxh4
{[%clk 0:02:00.8]} 21... Qxh4 {[%clk 0:01:24.3]} 22. Qa4 {[%clk 0:02:01.1]}
22... Qe7 {[%clk 0:01:23.2]} 23. Rb2 {[%clk 0:01:58.6]} 23... Nf6 {[%clk
0:01:19.5]} 24. Rfb1 {[%clk 0:01:57.2]} 24... g5 {[%clk 0:01:16.5]} 25. Qc6
{[%clk 0:01:40.1]} 25... Rf7 {[%clk 0:01:15.3]} 26. Nd1 {[%clk 0:00:59.2]} 26...
h5 {[%clk 0:01:09.5]} 27. Nf2 {[%clk 0:00:59.3]} 27... g4 {[%clk 0:01:09.9]} 28.
fxg4 {[%clk 0:00:57.6]} 28... hxg4 {[%clk 0:01:10.8]} 29. Nxg4 {[%clk
0:00:49.4]} 29... Kg7 {[%clk 0:01:00.8]} 30. Nxf6 {[%clk 0:00:42.4]} 30... Kxf6
{[%clk 0:01:01.7]} 31. Bg4 {[%clk 0:00:37.3]} 31... Na5 {[%clk 0:00:37.8]} 32.
Qxa8 {[%clk 0:00:36.6]} 32... Bxg4 {[%clk 0:00:38.7]} 33. Rb8 {[%clk 0:00:34.1]}
33... f3 {[%clk 0:00:31.8]} 34. Re8 {[%clk 0:00:30]} 34... Qd7 {[%clk
0:00:31.4]} 35. Qd8+ {[%clk 0:00:23.7]} 35... Qxd8 {[%clk 0:00:30.8]} 36. Rxd8
{[%clk 0:00:24.6]} 36... fxg2 {[%clk 0:00:31.2]} 37. Kxg2 {[%clk 0:00:18.6]}
37... Nb7 {[%clk 0:00:28.6]} 38. Rxb7 {[%clk 0:00:15.1]} 38... Rxb7 {[%clk
0:00:27.9]} 39. Rxd6+ {[%clk 0:00:16]} 39... Kg5 {[%clk 0:00:28.5]} 40. Nf3+
{[%clk 0:00:11.1]} 40... Kf4 {[%clk 0:00:27.6]} 41. Rf6+ {[%clk 0:00:09.5]}
41... Kxe4 {[%clk 0:00:22.8]} 42. Ng5+ {[%clk 0:00:09.5]} 42... Kd4 {[%clk
0:00:23.1]} 43. h3 {[%clk 0:00:07.7]} 43... Be2 {[%clk 0:00:21.9]} 44. d6 {[%clk
0:00:02.4]} 44... Bxc4 {[%clk 0:00:22.1]} 45. Nf3+ {[%clk 0:00:01.7]} 45... Ke4
{[%clk 0:00:19.7]} 0-1

[Event "*** Titled Tuesday Blitz"]
[Site "Chess.com"]
[Date "2020.03.03"]
[Round "5"]
[White "IsaiahMcIntosh"]
[Black "doons21"]
[Result "0-1"]
[WhiteElo "2371"]
[BlackElo "2593"]
[TimeControl "180+1"]
[EndTime "9:52:40 PST"]
[Termination "doons21 won on time"]

1. e4 {[%clk 0:03:00.9]} 1... e6 {[%clk 0:02:59.8]} 2. d4 {[%clk 0:02:56.5]}
2... d5 {[%clk 0:03:00.2]} 3. Nd2 {[%clk 0:02:54.5]} 3... Nc6 {[%clk 0:02:59.8]}
4. Ngf3 {[%clk 0:02:53.7]} 4... Nf6 {[%clk 0:03:00.1]} 5. e5 {[%clk 0:02:53.4]}
5... Nd7 {[%clk 0:03:00.6]} 6. Bb5 {[%clk 0:02:52.5]} 6... a6 {[%clk 0:02:59.5]}
7. Bxc6 {[%clk 0:02:51.6]} 7... bxc6 {[%clk 0:03:00.4]} 8. c4 {[%clk 0:02:44.9]}
8... Be7 {[%clk 0:02:56.6]} 9. O-O {[%clk 0:02:44.8]} 9... O-O {[%clk
0:02:54.2]} 10. c5 {[%clk 0:02:42.9]} 10... a5 {[%clk 0:02:53.3]} 11. Re1 {[%clk
0:02:42.7]} 11... a4 {[%clk 0:02:49.2]} 12. Nf1 {[%clk 0:02:39.7]} 12... f5
{[%clk 0:02:17.4]} 13. exf6 {[%clk 0:02:30.6]} 13... Nxf6 {[%clk 0:02:17.6]} 14.
Ng3 {[%clk 0:02:26.5]} 14... Bd7 {[%clk 0:02:10.4]} 15. Ne5 {[%clk 0:02:24.5]}
15... Be8 {[%clk 0:02:10.9]} 16. Nd3 {[%clk 0:02:20.6]} 16... Bf7 {[%clk
0:02:06.6]} 17. Nf4 {[%clk 0:02:18.8]} 17... Qd7 {[%clk 0:02:03.7]} 18. Qe2
{[%clk 0:02:14.9]} 18... Rfe8 {[%clk 0:01:58.7]} 19. Nd3 {[%clk 0:02:10.4]}
19... Qc8 {[%clk 0:01:41.1]} 20. Ne5 {[%clk 0:02:07.3]} 20... Qa6 {[%clk
0:01:35.6]} 21. Qe3 {[%clk 0:01:49.3]} 21... Bf8 {[%clk 0:01:34.5]} 22. Qf4
{[%clk 0:01:46]} 22... Rad8 {[%clk 0:01:02.1]} 23. Nxf7 {[%clk 0:01:36.9]} 23...
Kxf7 {[%clk 0:01:02]} 24. Qxc7+ {[%clk 0:01:36.6]} 24... Rd7 {[%clk 0:01:02.9]}
25. Qf4 {[%clk 0:01:34.6]} 25... Qd3 {[%clk 0:01:03.1]} 26. Qe3 {[%clk
0:01:21.4]} 26... Qc2 {[%clk 0:01:02.2]} 27. Qc3 {[%clk 0:01:19.5]} 27... Qg6
{[%clk 0:00:59.5]} 28. Bf4 {[%clk 0:01:18.1]} 28... h5 {[%clk 0:00:58.9]} 29. h3
{[%clk 0:01:15.1]} 29... h4 {[%clk 0:00:58.8]} 30. Nf1 {[%clk 0:01:11.4]} 30...
Kg8 {[%clk 0:00:58.2]} 31. Nd2 {[%clk 0:01:09.8]} 31... Rf7 {[%clk 0:00:58.2]}
32. Be5 {[%clk 0:01:05.6]} 32... Nd7 {[%clk 0:00:56.4]} 33. Bh2 {[%clk
0:00:57.9]} 33... Be7 {[%clk 0:00:51.7]} 34. Nf3 {[%clk 0:00:56.2]} 34... Ref8
{[%clk 0:00:52.1]} 35. Re3 {[%clk 0:00:55.9]} 35... Bg5 {[%clk 0:00:35.2]} 36.
Nxg5 {[%clk 0:00:51.5]} 36... Qxg5 {[%clk 0:00:36.1]} 37. f3 {[%clk 0:00:48.5]}
37... Rf5 {[%clk 0:00:28.6]} 38. Rae1 {[%clk 0:00:46.9]} 38... R8f6 {[%clk
0:00:28]} 39. f4 {[%clk 0:00:35.3]} 39... Qg6 {[%clk 0:00:27]} 40. Qa5 {[%clk
0:00:27.7]} 40... Rxf4 {[%clk 0:00:16.1]} 41. Qd8+ {[%clk 0:00:21.5]} 41... Nf8
{[%clk 0:00:11.3]} 42. Bxf4 {[%clk 0:00:20.5]} 42... Rxf4 {[%clk 0:00:12.2]} 43.
Rxe6 {[%clk 0:00:18]} 43... Qd3 {[%clk 0:00:12.8]} 44. Re8 {[%clk 0:00:11.5]}
44... Qxd4+ {[%clk 0:00:12.7]} 45. Kh1 {[%clk 0:00:12]} 45... Qxc5 {[%clk
0:00:09.1]} 46. Qb8 {[%clk 0:00:10]} 46... Qf2 {[%clk 0:00:08.5]} 47. Rg1 {[%clk
0:00:05.4]} 47... d4 {[%clk 0:00:07.6]} 48. Rd1 {[%clk 0:00:04.1]} 48... d3
{[%clk 0:00:06.6]} 49. Qd8 {[%clk 0:00:01.6]} 49... Re4 {[%clk 0:00:01.5]} 0-1